{"text_format":"1","workbook":"xlsx","n_sheets":7,"sheets":["表紙","DATA","歯科診療所票_単記","歯科診療所票_連記","歯科診療所票入力のしかた","歯科診療所票フィールド定義","マスタ"],"not_rendered":{"charts":0,"images":8,"macros":1,"external_links":0,"defined_names":2,"comments":1,"pivot_tables":0},"unopened":[],"bounds":{"document_bytes":16777216,"sheet_cells":100000,"rows_first":2000,"rows_last":500,"rows_between":2000,"halvings":0,"cell_chars":16384,"cell_head_chars":4096},"cells_cut":0,"cells_raw":0,"read":"whole","date_system":"1900"}

{"sheet":"表紙","index":0,"n_rows":29,"n_cols":11,"rows_kept":29,"cut":false,"hidden":false,"merged":[[16,6,17,11],[10,2,10,9],[13,1,13,3],[3,1,3,9],[6,2,6,9],[7,2,7,9],[8,2,8,9],[9,2,9,9],[13,6,14,11],[4,1,4,9],[5,1,5,9]]}
[]
[]
[]
[null,"令和５年 患者調査 調査票（歯科診療所用）",null,null,null,null,null,null,null,null,"【ver1.1】"]
[]
[null,null,null,null,null,null,null,null,null,null," "]
[null,"都道府県",{"$f":"IF(マスタ!AA3=\"\",\"\",マスタ!AA3)","v":""}]
[null,"施設番号",{"$f":"IF(マスタ!AA5=\"\",\"\",マスタ!AA5)","v":""}]
[null,"施設名"]
[null,"調査日",{"$f":"IF(マスタ!AA9=\"\",\"\",\"令和５年１０月\"&マスタ!AA9)","v":""}]
[null,"調査の対象","歯科診療所票"]
[]
[]
[null,"歯科診療所票"]
[]
[]
[]
[]
[]
[]
[]
[]
[]
[]
[]
[]
[]
[]
[null,null,null,null,null,null,null,null,null,"　"]

{"sheet":"DATA","index":1,"n_rows":346,"n_cols":12,"rows_kept":346,"cut":false,"hidden":true,"merged":[]}
["項番","階層\nレベ\nル１","階層\nレベ\nル２","階層\nレベ\nル３","フィールド種類","項目名","タグ名","プレプリント","入力値",null,null,"<?xml version=\"1.0\" encoding=\"UTF-8\"?>"]
[{"$f":"ROW()-1","v":1},1,null,null,"サブフォーム","対象者認証情報格納エリア","taishosha_cer"]
[{"$f":"ROW()-1","v":2},null,1,null,"テキストフィールド","認証統計調査コード","cer_toke_cd"]
[{"$f":"ROW()-1","v":3},null,2,null,"テキストフィールド","認証調査対象者ID","cer_taishosha_id"]
[4,null,3,null,"テキストフィールド","確認コード","cer_kakunin_cd"]
[5,null,4,null,"テキストフィールド","36進統計調査コード","toke_cd_36"]
[6,null,5,null,"テキストフィールド","送信先URL1","soshin1"]
[7,null,6,null,"テキストフィールド","送信先URL2","soshin2"]
[8,2,null,null,"サブフォーム","管理情報格納エリア","kanri"]
[9,null,1,null,"テキストフィールド","統計調査コード","toke_cd",null,"1"]
[10,null,2,null,"テキストフィールド","実施時期コード","jiki_cd",null,"1"]
[11,null,3,null,"テキストフィールド","調査対象者ID","taishosha_id"]
[12,null,4,null,"テキストフィールド","電子調査票ID","chosahyo_id"]
[13,null,5,null,"テキストフィールド","キー項目","key_komoku"]
[14,3,null,null,"サブフォーム","連絡先情報格納エリア","renraku"]
[15,null,1,null,"テキストフィールド","メールアドレス","mail_adr"]
[16,null,2,null,"テキストフィールド","氏名","shime"]
[17,null,3,null,"テキストフィールド","会社名","kaisha"]
[18,null,4,null,"テキストフィールド","英文会社名","kaisha_e",null,0]
[19,null,5,null,"テキストフィールド","商号","shogo"]
[20,null,6,null,"テキストフィールド","支店名","shiten"]
[21,null,7,null,"テキストフィールド","店舗名","tempo"]
[22,null,8,null,"テキストフィールド","代表者名","daihyosha"]
[23,null,9,null,"テキストフィールド","法人名","hojin"]
[24,null,10,null,"テキストフィールド","学校名","gakko"]
[25,null,11,null,"テキストフィールド","部署名","busho"]
[26,null,12,null,"テキストフィールド","担当者名","tantosha"]
[27,null,13,null,"テキストフィールド","住所","jusho"]
[28,null,14,null,"テキストフィールド","所在地","shozaichi"]
[29,null,15,null,"テキストフィールド","本社・本店所在地","shozaichi_2"]
[30,null,16,null,"テキストフィールド","ビル名","biru"]
[31,null,17,null,"テキストフィールド","郵便番号","yubin_no"]
[32,null,18,null,"テキストフィールド","本社・本店郵便番号","yubin_no_2"]
[33,null,19,null,"テキストフィールド","電話番号","tel_no"]
[34,null,20,null,"テキストフィールド","本社・本店電話番号","tel_no_2"]
[35,null,21,null,"テキストフィールド","内線番号","naisen_no"]
[36,null,22,null,"テキストフィールド","携帯電話番号","ketai_no"]
[37,null,23,null,"テキストフィールド","ＦＡＸ番号","fax_no"]
[38,null,24,null,"テキストフィールド","備考１","biko_1"]
[39,null,25,null,"テキストフィールド","備考２","biko_2"]
[40,null,26,null,"テキストフィールド","備考３","biko_3"]
[41,4,null,null,"サブフォーム","調査票回答格納エリア","kaito"]
[42,null,1,null,"テキストフィールド","都道府県コード","todofuken_cd",null,"03"]
[43,null,2,null,"テキストフィールド","施設番号","shisetsu_bango",null,""]
[44,null,3,null,"テキストフィールド","施設名","shisetsu_mei"]
[45,null,4,null,"テキストフィールド","調査日","chosa_bi",null,18]
[46,null,5,null,"テキストフィールド","歯科1","shika_1"]
[47,null,6,null,"テキストフィールド","歯科2","shika_2"]
[48,null,7,null,"テキストフィールド","歯科3","shika_3"]
[49,null,8,null,"テキストフィールド","歯科4","shika_4"]
[50,null,9,null,"テキストフィールド","歯科5","shika_5"]
[51,null,10,null,"テキストフィールド","歯科6","shika_6"]
[52,null,11,null,"テキストフィールド","歯科7","shika_7"]
[53,null,12,null,"テキストフィールド","歯科8","shika_8"]
[54,null,13,null,"テキストフィールド","歯科9","shika_9"]
[55,null,14,null,"テキストフィールド","歯科10","shika_10"]
[56,null,15,null,"テキストフィールド","歯科11","shika_11"]
[57,null,16,null,"テキストフィールド","歯科12","shika_12"]
[58,null,17,null,"テキストフィールド","歯科13","shika_13"]
[59,null,18,null,"テキストフィールド","歯科14","shika_14"]
[60,null,19,null,"テキストフィールド","歯科15","shika_15"]
[61,null,20,null,"テキストフィールド","歯科16","shika_16"]
[62,null,21,null,"テキストフィールド","歯科17","shika_17"]
[63,null,22,null,"テキストフィールド","歯科18","shika_18"]
[64,null,23,null,"テキストフィールド","歯科19","shika_19"]
[65,null,24,null,"テキストフィールド","歯科20","shika_20"]
[66,null,25,null,"テキストフィールド","歯科21","shika_21"]
[67,null,26,null,"テキストフィールド","歯科22","shika_22"]
[68,null,27,null,"テキストフィールド","歯科23","shika_23"]
[69,null,28,null,"テキストフィールド","歯科24","shika_24"]
[70,null,29,null,"テキストフィールド","歯科25","shika_25"]
[{"$f":"ROW()-1","v":71},null,30,null,"テキストフィールド","歯科26","shika_26"]
[72,null,31,null,"テキストフィールド","歯科27","shika_27"]
[73,null,32,null,"テキストフィールド","歯科28","shika_28"]
[74,null,33,null,"テキストフィールド","歯科29","shika_29"]
[75,null,34,null,"テキストフィールド","歯科30","shika_30"]
[76,null,35,null,"テキストフィールド","歯科31","shika_31"]
[77,null,36,null,"テキストフィールド","歯科32","shika_32"]
[78,null,37,null,"テキストフィールド","歯科33","shika_33"]
[79,null,38,null,"テキストフィールド","歯科34","shika_34"]
[80,null,39,null,"テキストフィールド","歯科35","shika_35"]
[81,null,40,null,"テキストフィールド","歯科36","shika_36"]
[82,null,41,null,"テキストフィールド","歯科37","shika_37"]
[83,null,42,null,"テキストフィールド","歯科38","shika_38"]
[84,null,43,null,"テキストフィールド","歯科39","shika_39"]
[85,null,44,null,"テキストフィールド","歯科40","shika_40"]
[86,null,45,null,"テキストフィールド","歯科41","shika_41"]
[87,null,46,null,"テキストフィールド","歯科42","shika_42"]
[88,null,47,null,"テキストフィールド","歯科43","shika_43"]
[89,null,48,null,"テキストフィールド","歯科44","shika_44"]
[90,null,49,null,"テキストフィールド","歯科45","shika_45"]
[91,null,50,null,"テキストフィールド","歯科46","shika_46"]
[92,null,51,null,"テキストフィールド","歯科47","shika_47"]
[93,null,52,null,"テキストフィールド","歯科48","shika_48"]
[94,null,53,null,"テキストフィールド","歯科49","shika_49"]
[95,null,54,null,"テキストフィールド","歯科50","shika_50"]
[96,null,55,null,"テキストフィールド","歯科51","shika_51"]
[97,null,56,null,"テキストフィールド","歯科52","shika_52"]
[98,null,57,null,"テキストフィールド","歯科53","shika_53"]
[99,null,58,null,"テキストフィールド","歯科54","shika_54"]
[100,null,59,null,"テキストフィールド","歯科55","shika_55"]
[101,null,60,null,"テキストフィールド","歯科56","shika_56"]
[102,null,61,null,"テキストフィールド","歯科57","shika_57"]
[103,null,62,null,"テキストフィールド","歯科58","shika_58"]
[104,null,63,null,"テキストフィールド","歯科59","shika_59"]
[105,null,64,null,"テキストフィールド","歯科60","shika_60"]
[106,null,65,null,"テキストフィールド","歯科61","shika_61"]
[107,null,66,null,"テキストフィールド","歯科62","shika_62"]
[108,null,67,null,"テキストフィールド","歯科63","shika_63"]
[109,null,68,null,"テキストフィールド","歯科64","shika_64"]
[110,null,69,null,"テキストフィールド","歯科65","shika_65"]
[111,null,70,null,"テキストフィールド","歯科66","shika_66"]
[112,null,71,null,"テキストフィールド","歯科67","shika_67"]
[113,null,72,null,"テキストフィールド","歯科68","shika_68"]
[114,null,73,null,"テキストフィールド","歯科69","shika_69"]
[115,null,74,null,"テキストフィールド","歯科70","shika_70"]
[116,null,75,null,"テキストフィールド","歯科71","shika_71"]
[117,null,76,null,"テキストフィールド","歯科72","shika_72"]
[118,null,77,null,"テキストフィールド","歯科73","shika_73"]
[119,null,78,null,"テキストフィールド","歯科74","shika_74"]
[120,null,79,null,"テキストフィールド","歯科75","shika_75"]
[121,null,80,null,"テキストフィールド","歯科76","shika_76"]
[122,null,81,null,"テキストフィールド","歯科77","shika_77"]
[123,null,82,null,"テキストフィールド","歯科78","shika_78"]
[124,null,83,null,"テキストフィールド","歯科79","shika_79"]
[125,null,84,null,"テキストフィールド","歯科80","shika_80"]
[126,null,85,null,"テキストフィールド","歯科81","shika_81"]
[127,null,86,null,"テキストフィールド","歯科82","shika_82"]
[128,null,87,null,"テキストフィールド","歯科83","shika_83"]
[129,null,88,null,"テキストフィールド","歯科84","shika_84"]
[130,null,89,null,"テキストフィールド","歯科85","shika_85"]
[131,null,90,null,"テキストフィールド","歯科86","shika_86"]
[132,null,91,null,"テキストフィールド","歯科87","shika_87"]
[133,null,92,null,"テキストフィールド","歯科88","shika_88"]
[134,null,93,null,"テキストフィールド","歯科89","shika_89"]
[{"$f":"ROW()-1","v":135},null,94,null,"テキストフィールド","歯科90","shika_90"]
[136,null,95,null,"テキストフィールド","歯科91","shika_91"]
[137,null,96,null,"テキストフィールド","歯科92","shika_92"]
[138,null,97,null,"テキストフィールド","歯科93","shika_93"]
[139,null,98,null,"テキストフィールド","歯科94","shika_94"]
[140,null,99,null,"テキストフィールド","歯科95","shika_95"]
[141,null,100,null,"テキストフィールド","歯科96","shika_96"]
[142,null,101,null,"テキストフィールド","歯科97","shika_97"]
[143,null,102,null,"テキストフィールド","歯科98","shika_98"]
[144,null,103,null,"テキストフィールド","歯科99","shika_99"]
[145,null,104,null,"テキストフィールド","歯科100","shika_100"]
[146,null,105,null,"テキストフィールド","歯科101","shika_101"]
[147,null,106,null,"テキストフィールド","歯科102","shika_102"]
[148,null,107,null,"テキストフィールド","歯科103","shika_103"]
[149,null,108,null,"テキストフィールド","歯科104","shika_104"]
[150,null,109,null,"テキストフィールド","歯科105","shika_105"]
[151,null,110,null,"テキストフィールド","歯科106","shika_106"]
[152,null,111,null,"テキストフィールド","歯科107","shika_107"]
[153,null,112,null,"テキストフィールド","歯科108","shika_108"]
[154,null,113,null,"テキストフィールド","歯科109","shika_109"]
[155,null,114,null,"テキストフィールド","歯科110","shika_110"]
[156,null,115,null,"テキストフィールド","歯科111","shika_111"]
[157,null,116,null,"テキストフィールド","歯科112","shika_112"]
[158,null,117,null,"テキストフィールド","歯科113","shika_113"]
[159,null,118,null,"テキストフィールド","歯科114","shika_114"]
[160,null,119,null,"テキストフィールド","歯科115","shika_115"]
[161,null,120,null,"テキストフィールド","歯科116","shika_116"]
[162,null,121,null,"テキストフィールド","歯科117","shika_117"]
[163,null,122,null,"テキストフィールド","歯科118","shika_118"]
[164,null,123,null,"テキストフィールド","歯科119","shika_119"]
[165,null,124,null,"テキストフィールド","歯科120","shika_120"]
[166,null,125,null,"テキストフィールド","歯科121","shika_121"]
[167,null,126,null,"テキストフィールド","歯科122","shika_122"]
[168,null,127,null,"テキストフィールド","歯科123","shika_123"]
[169,null,128,null,"テキストフィールド","歯科124","shika_124"]
[170,null,129,null,"テキストフィールド","歯科125","shika_125"]
[171,null,130,null,"テキストフィールド","歯科126","shika_126"]
[172,null,131,null,"テキストフィールド","歯科127","shika_127"]
[173,null,132,null,"テキストフィールド","歯科128","shika_128"]
[174,null,133,null,"テキストフィールド","歯科129","shika_129"]
[175,null,134,null,"テキストフィールド","歯科130","shika_130"]
[176,null,135,null,"テキストフィールド","歯科131","shika_131"]
[177,null,136,null,"テキストフィールド","歯科132","shika_132"]
[178,null,137,null,"テキストフィールド","歯科133","shika_133"]
[179,null,138,null,"テキストフィールド","歯科134","shika_134"]
[180,null,139,null,"テキストフィールド","歯科135","shika_135"]
[181,null,140,null,"テキストフィールド","歯科136","shika_136"]
[182,null,141,null,"テキストフィールド","歯科137","shika_137"]
[183,null,142,null,"テキストフィールド","歯科138","shika_138"]
[184,null,143,null,"テキストフィールド","歯科139","shika_139"]
[185,null,144,null,"テキストフィールド","歯科140","shika_140"]
[186,null,145,null,"テキストフィールド","歯科141","shika_141"]
[187,null,146,null,"テキストフィールド","歯科142","shika_142"]
[188,null,147,null,"テキストフィールド","歯科143","shika_143"]
[189,null,148,null,"テキストフィールド","歯科144","shika_144"]
[190,null,149,null,"テキストフィールド","歯科145","shika_145"]
[191,null,150,null,"テキストフィールド","歯科146","shika_146"]
[192,null,151,null,"テキストフィールド","歯科147","shika_147"]
[193,null,152,null,"テキストフィールド","歯科148","shika_148"]
[194,null,153,null,"テキストフィールド","歯科149","shika_149"]
[195,null,154,null,"テキストフィールド","歯科150","shika_150"]
[196,null,155,null,"テキストフィールド","歯科151","shika_151"]
[197,null,156,null,"テキストフィールド","歯科152","shika_152"]
[198,null,157,null,"テキストフィールド","歯科153","shika_153"]
[{"$f":"ROW()-1","v":199},null,158,null,"テキストフィールド","歯科154","shika_154"]
[200,null,159,null,"テキストフィールド","歯科155","shika_155"]
[201,null,160,null,"テキストフィールド","歯科156","shika_156"]
[202,null,161,null,"テキストフィールド","歯科157","shika_157"]
[203,null,162,null,"テキストフィールド","歯科158","shika_158"]
[204,null,163,null,"テキストフィールド","歯科159","shika_159"]
[205,null,164,null,"テキストフィールド","歯科160","shika_160"]
[206,null,165,null,"テキストフィールド","歯科161","shika_161"]
[207,null,166,null,"テキストフィールド","歯科162","shika_162"]
[208,null,167,null,"テキストフィールド","歯科163","shika_163"]
[209,null,168,null,"テキストフィールド","歯科164","shika_164"]
[210,null,169,null,"テキストフィールド","歯科165","shika_165"]
[211,null,170,null,"テキストフィールド","歯科166","shika_166"]
[212,null,171,null,"テキストフィールド","歯科167","shika_167"]
[213,null,172,null,"テキストフィールド","歯科168","shika_168"]
[214,null,173,null,"テキストフィールド","歯科169","shika_169"]
[215,null,174,null,"テキストフィールド","歯科170","shika_170"]
[216,null,175,null,"テキストフィールド","歯科171","shika_171"]
[217,null,176,null,"テキストフィールド","歯科172","shika_172"]
[218,null,177,null,"テキストフィールド","歯科173","shika_173"]
[219,null,178,null,"テキストフィールド","歯科174","shika_174"]
[220,null,179,null,"テキストフィールド","歯科175","shika_175"]
[221,null,180,null,"テキストフィールド","歯科176","shika_176"]
[222,null,181,null,"テキストフィールド","歯科177","shika_177"]
[223,null,182,null,"テキストフィールド","歯科178","shika_178"]
[224,null,183,null,"テキストフィールド","歯科179","shika_179"]
[225,null,184,null,"テキストフィールド","歯科180","shika_180"]
[226,null,185,null,"テキストフィールド","歯科181","shika_181"]
[227,null,186,null,"テキストフィールド","歯科182","shika_182"]
[228,null,187,null,"テキストフィールド","歯科183","shika_183"]
[229,null,188,null,"テキストフィールド","歯科184","shika_184"]
[230,null,189,null,"テキストフィールド","歯科185","shika_185"]
[231,null,190,null,"テキストフィールド","歯科186","shika_186"]
[232,null,191,null,"テキストフィールド","歯科187","shika_187"]
[233,null,192,null,"テキストフィールド","歯科188","shika_188"]
[234,null,193,null,"テキストフィールド","歯科189","shika_189"]
[235,null,194,null,"テキストフィールド","歯科190","shika_190"]
[236,null,195,null,"テキストフィールド","歯科191","shika_191"]
[237,null,196,null,"テキストフィールド","歯科192","shika_192"]
[238,null,197,null,"テキストフィールド","歯科193","shika_193"]
[239,null,198,null,"テキストフィールド","歯科194","shika_194"]
[240,null,199,null,"テキストフィールド","歯科195","shika_195"]
[241,null,200,null,"テキストフィールド","歯科196","shika_196"]
[242,null,201,null,"テキストフィールド","歯科197","shika_197"]
[243,null,202,null,"テキストフィールド","歯科198","shika_198"]
[244,null,203,null,"テキストフィールド","歯科199","shika_199"]
[245,null,204,null,"テキストフィールド","歯科200","shika_200"]
[246,null,205,null,"テキストフィールド","歯科201","shika_201"]
[247,null,206,null,"テキストフィールド","歯科202","shika_202"]
[248,null,207,null,"テキストフィールド","歯科203","shika_203"]
[249,null,208,null,"テキストフィールド","歯科204","shika_204"]
[250,null,209,null,"テキストフィールド","歯科205","shika_205"]
[251,null,210,null,"テキストフィールド","歯科206","shika_206"]
[252,null,211,null,"テキストフィールド","歯科207","shika_207"]
[253,null,212,null,"テキストフィールド","歯科208","shika_208"]
[254,null,213,null,"テキストフィールド","歯科209","shika_209"]
[255,null,214,null,"テキストフィールド","歯科210","shika_210"]
[256,null,215,null,"テキストフィールド","歯科211","shika_211"]
[257,null,216,null,"テキストフィールド","歯科212","shika_212"]
[258,null,217,null,"テキストフィールド","歯科213","shika_213"]
[259,null,218,null,"テキストフィールド","歯科214","shika_214"]
[260,null,219,null,"テキストフィールド","歯科215","shika_215"]
[261,null,220,null,"テキストフィールド","歯科216","shika_216"]
[262,null,221,null,"テキストフィールド","歯科217","shika_217"]
[{"$f":"ROW()-1","v":263},null,222,null,"テキストフィールド","歯科218","shika_218"]
[264,null,223,null,"テキストフィールド","歯科219","shika_219"]
[265,null,224,null,"テキストフィールド","歯科220","shika_220"]
[266,null,225,null,"テキストフィールド","歯科221","shika_221"]
[267,null,226,null,"テキストフィールド","歯科222","shika_222"]
[268,null,227,null,"テキストフィールド","歯科223","shika_223"]
[269,null,228,null,"テキストフィールド","歯科224","shika_224"]
[270,null,229,null,"テキストフィールド","歯科225","shika_225"]
[271,null,230,null,"テキストフィールド","歯科226","shika_226"]
[272,null,231,null,"テキストフィールド","歯科227","shika_227"]
[273,null,232,null,"テキストフィールド","歯科228","shika_228"]
[274,null,233,null,"テキストフィールド","歯科229","shika_229"]
[275,null,234,null,"テキストフィールド","歯科230","shika_230"]
[276,null,235,null,"テキストフィールド","歯科231","shika_231"]
[277,null,236,null,"テキストフィールド","歯科232","shika_232"]
[278,null,237,null,"テキストフィールド","歯科233","shika_233"]
[279,null,238,null,"テキストフィールド","歯科234","shika_234"]
[280,null,239,null,"テキストフィールド","歯科235","shika_235"]
[281,null,240,null,"テキストフィールド","歯科236","shika_236"]
[282,null,241,null,"テキストフィールド","歯科237","shika_237"]
[283,null,242,null,"テキストフィールド","歯科238","shika_238"]
[284,null,243,null,"テキストフィールド","歯科239","shika_239"]
[285,null,244,null,"テキストフィールド","歯科240","shika_240"]
[286,null,245,null,"テキストフィールド","歯科241","shika_241"]
[287,null,246,null,"テキストフィールド","歯科242","shika_242"]
[288,null,247,null,"テキストフィールド","歯科243","shika_243"]
[289,null,248,null,"テキストフィールド","歯科244","shika_244"]
[290,null,249,null,"テキストフィールド","歯科245","shika_245"]
[291,null,250,null,"テキストフィールド","歯科246","shika_246"]
[292,null,251,null,"テキストフィールド","歯科247","shika_247"]
[293,null,252,null,"テキストフィールド","歯科248","shika_248"]
[294,null,253,null,"テキストフィールド","歯科249","shika_249"]
[295,null,254,null,"テキストフィールド","歯科250","shika_250"]
[296,null,255,null,"テキストフィールド","歯科251","shika_251"]
[297,null,256,null,"テキストフィールド","歯科252","shika_252"]
[298,null,257,null,"テキストフィールド","歯科253","shika_253"]
[299,null,258,null,"テキストフィールド","歯科254","shika_254"]
[300,null,259,null,"テキストフィールド","歯科255","shika_255"]
[301,null,260,null,"テキストフィールド","歯科256","shika_256"]
[302,null,261,null,"テキストフィールド","歯科257","shika_257"]
[303,null,262,null,"テキストフィールド","歯科258","shika_258"]
[304,null,263,null,"テキストフィールド","歯科259","shika_259"]
[305,null,264,null,"テキストフィールド","歯科260","shika_260"]
[306,null,265,null,"テキストフィールド","歯科261","shika_261"]
[307,null,266,null,"テキストフィールド","歯科262","shika_262"]
[308,null,267,null,"テキストフィールド","歯科263","shika_263"]
[309,null,268,null,"テキストフィールド","歯科264","shika_264"]
[310,null,269,null,"テキストフィールド","歯科265","shika_265"]
[311,null,270,null,"テキストフィールド","歯科266","shika_266"]
[312,null,271,null,"テキストフィールド","歯科267","shika_267"]
[313,null,272,null,"テキストフィールド","歯科268","shika_268"]
[314,null,273,null,"テキストフィールド","歯科269","shika_269"]
[315,null,274,null,"テキストフィールド","歯科270","shika_270"]
[316,null,275,null,"テキストフィールド","歯科271","shika_271"]
[317,null,276,null,"テキストフィールド","歯科272","shika_272"]
[318,null,277,null,"テキストフィールド","歯科273","shika_273"]
[319,null,278,null,"テキストフィールド","歯科274","shika_274"]
[320,null,279,null,"テキストフィールド","歯科275","shika_275"]
[321,null,280,null,"テキストフィールド","歯科276","shika_276"]
[322,null,281,null,"テキストフィールド","歯科277","shika_277"]
[323,null,282,null,"テキストフィールド","歯科278","shika_278"]
[324,null,283,null,"テキストフィールド","歯科279","shika_279"]
[325,null,284,null,"テキストフィールド","歯科280","shika_280"]
[326,null,285,null,"テキストフィールド","歯科281","shika_281"]
[{"$f":"ROW()-1","v":327},null,286,null,"テキストフィールド","歯科282","shika_282"]
[328,null,287,null,"テキストフィールド","歯科283","shika_283"]
[329,null,288,null,"テキストフィールド","歯科284","shika_284"]
[330,null,289,null,"テキストフィールド","歯科285","shika_285"]
[331,null,290,null,"テキストフィールド","歯科286","shika_286"]
[332,null,291,null,"テキストフィールド","歯科287","shika_287"]
[333,null,292,null,"テキストフィールド","歯科288","shika_288"]
[334,null,293,null,"テキストフィールド","歯科289","shika_289"]
[335,null,294,null,"テキストフィールド","歯科290","shika_290"]
[336,null,295,null,"テキストフィールド","歯科291","shika_291"]
[337,null,296,null,"テキストフィールド","歯科292","shika_292"]
[338,null,297,null,"テキストフィールド","歯科293","shika_293"]
[339,null,298,null,"テキストフィールド","歯科294","shika_294"]
[340,null,299,null,"テキストフィールド","歯科295","shika_295"]
[341,null,300,null,"テキストフィールド","歯科296","shika_296"]
[342,null,301,null,"テキストフィールド","歯科297","shika_297"]
[343,null,302,null,"テキストフィールド","歯科298","shika_298"]
[344,null,303,null,"テキストフィールド","歯科299","shika_299"]
[345,null,304,null,"テキストフィールド","歯科300","shika_300"]

{"sheet":"歯科診療所票_単記","index":2,"n_rows":73,"n_cols":6,"rows_kept":73,"cut":false,"hidden":true,"merged":[[12,0,13,0],[14,0,17,0],[23,1,26,1],[6,0,6,1],[19,1,21,1],[19,0,26,0]]}
[null,null,null,"・「入力のしかた」ボタンをクリックすると、選択している項目の入力のしかたが表示されます。"]
[null,null,null,"・すべての入力が終わりましたら「エラーチェック・保存」ボタンをクリックしてください。"]
[null,null,null,"・セル表示：桃色　 → エラー箇所を表示しています。"]
[]
[]
["項目名",null,"入力欄","凡例（選択項目（数字を入力する項目）は半角英数字で入力してください）"]
["患者番号（自動入力）",null,{"$f":"F7","v":"0001"},"自動入力",null,"0001"]
["(1)性別","性別",null,"1:男　2:女"]
["(2)出生年月日","元号",null,"1:令和　2:平成　3:昭和　4:大正　5:明治　　※推定年齢を記入する場合は「入力のしかた」を参照"]
[null,"年",null,"1～99"]
[null,"月",null,"1～91"]
[null,"日",null,"0～99"]
["(3)患者の住所","当院と同別",null,"1:当院と同じ都道府県内　2:当院とは別の都道府県"]
[null,"都道府県\n（当院と同別が「２：当院とは別の都道府県」の場合のみ記入）",null,"（漢字モード）"]
["(4)外来の種別","初診",null,"1:通院\n2:訪問診療"]
[null,"再来",null,"3:通院\n4:訪問診療\n5:歯科医師以外の訪問"]
[null,"「3」～「5」の場合は、月を記入してください。\n前回診療月日又は前回訪問月日\n令和５年　月　日\n（外来の種別が再来の場合のみ記入）",null,"1～10"]
[null,"「3」～「5」の場合は、日を記入してください。\n前回診療月日又は前回訪問月日\n令和５年　月　日\n（外来の種別が再来の場合のみ記入）",null,"1～31"]
["(5)傷病名","傷病名\n(該当するものいずれかを入力)",null," 1:う蝕症（C）\n 2:歯髄炎（Pul）、歯髄壊疽（Pu壊疽）、歯髄壊死（Pu壊死）\n 3:歯根膜炎（Per）\n 4:歯槽膿瘍（AA）、歯根嚢胞（WZ）\n 5:歯肉炎（G）\n 6:慢性歯周炎（P）\n 7:歯肉膿瘍（GA）、その他の歯周疾患\n 8:智歯周囲炎（Perico）\n 9:その他の歯及び歯の支持組織の障害\n10:じょく瘡性潰瘍（Dul）、口内炎（Stom）等\n11:その他の顎及び口腔の疾患\n12:歯の補てつ（冠）\n13:歯の欠損補てつ（ブリッジ、有床義歯、インプラント）\n14:歯科矯正\n15:外因による損傷\n16:検査・健康診断（査）及びその他の保健医療サービス"]
["(6)診療費等支払方法","負担区分\n（該当するものすべて）\n",null,"1:自費診療（保険外併用療養費を含む）"]
[null,null,null,"2:医療保険等、公費負担医療"]
[null,null,null,"3:介護保険（介護扶助を含む）"]
[null,"Ⅰ医療保険等\n（負担区分に「2.医療保険等、公費負担医療」がある場合は記入）",null,"1:健康保険・各種共済組合(本人）\n2:健康保険・各種共済組合(家族）\n3:国民健康保険\n4:退職者医療\n5:高齢者医療（後期高齢者医療制度）\n6:労働災害・公務災害\n7:自動車損害賠償保障法\n8:その他"]
[null,"Ⅱ公費負担医療\n（負担区分に「2.医療保険等、公費負担医療」がある場合は該当するものすべて記入）",null,"09:感染症の予防及び感染症の患者に対する医療に関する法律"]
[null,null,null,"10:障害者の日常生活及び社会生活を総合的に支援するための法律（育成医療、更生医療、精神通院医療）"]
[null,null,null,"11:生活保護法（医療扶助）"]
[null,null,null,"12:その他の公費負担によるもの"]
[]
[null,null,""]
[]
[null,null,""]
[null,null,""]
[null,null,""]
[null,null,""]
[null,null,""]
[null,null,""]
[null,null,""]
[null,null,""]
[null,null,""]
[null,null,""]
[null,null,""]
[null,null,""]
[null,null,""]
[null,null,""]
[null,null,""]
[null,null,""]
[null,null,""]
[null,null,""]
[null,null,""]
[null,null,""]
[null,null,""]
[null,null,""]
[null,null,""]
[null,null,""]
[null,null,""]
[null,null,""]
[null,null,""]
[null,null,""]
[null,null,""]
[null,null,""]
[null,null,""]
[null,null,""]
[null,null,""]
[null,null,""]
[null,null,""]
[null,null,""]
[null,null,""]
[null,null,""]
[]
[null,null,""]
[null,null,""]
[null,null,""]
[null,null,""]

{"sheet":"歯科診療所票_連記","index":3,"n_rows":313,"n_cols":24,"rows_kept":313,"cut":false,"hidden":true,"merged":[[1,0,2,11],[7,0,12,0],[7,2,7,5],[7,6,7,7],[7,8,7,11],[8,6,10,6],[11,7,12,7],[8,1,10,1],[8,2,12,2],[8,3,12,3],[8,4,12,4],[8,5,12,5],[8,10,9,11],[11,21,12,21],[4,11,4,12],[5,11,5,12],[11,23,12,23],[11,22,12,22],[7,13,7,20],[8,12,11,12],[9,16,11,16],[9,17,9,20]]}
["・「入力のしかた」ボタンをクリックすると、選択している項目の入力のしかたが表示されます。"]
["・「テキストから読み込み」ボタンをクリックすると、外部テキストデータを読み込みます。\n　（事前に回答内容をテキストファイル形式で作成している場合は利用できます）\n・「取込データに出力」ボタンをクリックすると、入力した情報を取込データに出力します。\n・「取込データを追加」ボタンをクリックすると、現在の入力情報に取込データを追加します。\n　（取込データは複数人で入力作業を行った情報を統合させることが出来ます）\n・すべての入力が終わりましたら「エラーチェック・保存」ボタンをクリックしてください。"]
[]
[]
[null,null,null,null,null,null,null,null,null,null,null,"施設番号"]
[null,null,null,null,null,null,null,null,null,null,null,{"$f":"IF(マスタ!AA5=\"\",\"\",マスタ!AA5)","v":""}]
[null,null,null,null,null,null,null,null,null,null,"セル表示：","桃色→","エラー箇所を表示しています。"]
["患者番号","(1)","(2)出生年月日",null,null,null,"(3)患者の住所",null,"(4)外来の種別",null,null,null,"(5)","(6)診療費等支払方法"]
[null,"性別","1令和\n2平成\n3昭和\n4大正\n5明治\n\n※推定年齢を記入する場合は「入力のしかた」を参照","年","月","日","当院と\n同別",null,"初診","再来","「3」～「5」の場合は、月日を記入してください。\n前回診療月日又は前回訪問月日\n令和５年",null,"傷病名"]
[null,null,null,null,null,null,null,null,null,null,null,null,null,1,2,3,"Ⅰ医療保険等","Ⅱ　公費負担医療"]
[null,null,null,null,null,null,null,null,null,null,null,null,null,null,null,null,null,"09",10,11,12]
[null,"1 男\n2 女",null,null,null,null,"1 同　\n2 別","都道府県","1 通院\n2 訪問診療\n","3 通院\n4 訪問診療\n5歯科医師以外の訪問\n","月","日",null,"自費診療（保険外併用療養費を含む）","医療保険等、公費負担医療","介護保険（介護扶助を含む）",null,"感染症法","障害者総合支援法","生活保護法","その他","単記票データ","テキスト読","オンライン"]
[null,null,null,null,null,null,null,null,null,null,null,null,"1～16",null,null,null,"1～8"]
["0001",null,null,null,null,null,null,null,null,null,null,null,null,null,null,null,null,null,null,null,null,"",""]
["0002",null,null,null,null,null,null,null,null,null,null,null,null,null,null,null,null,null,null,null,null,"",""]
["0003"]
["0004"]
["0005"]
["0006"]
["0007"]
["0008"]
["0009"]
["0010"]
["0011"]
["0012"]
["0013"]
["0014"]
["0015"]
["0016"]
["0017"]
["0018"]
["0019"]
["0020"]
["0021"]
["0022"]
["0023"]
["0024"]
["0025"]
["0026"]
["0027"]
["0028"]
["0029"]
["0030"]
["0031"]
["0032"]
["0033"]
["0034"]
["0035"]
["0036"]
["0037"]
["0038"]
["0039"]
["0040"]
["0041"]
["0042"]
["0043"]
["0044"]
["0045"]
["0046"]
["0047"]
["0048"]
["0049"]
["0050"]
["0051"]
["0052"]
["0053"]
["0054"]
["0055"]
["0056"]
["0057"]
["0058"]
["0059"]
["0060"]
["0061"]
["0062"]
["0063"]
["0064"]
["0065"]
["0066"]
["0067"]
["0068"]
["0069"]
["0070"]
["0071"]
["0072"]
["0073"]
["0074"]
["0075"]
["0076"]
["0077"]
["0078"]
["0079"]
["0080"]
["0081"]
["0082"]
["0083"]
["0084"]
["0085"]
["0086"]
["0087"]
["0088"]
["0089"]
["0090"]
["0091"]
["0092"]
["0093"]
["0094"]
["0095"]
["0096"]
["0097"]
["0098"]
["0099"]
["0100"]
["0101"]
["0102"]
["0103"]
["0104"]
["0105"]
["0106"]
["0107"]
["0108"]
["0109"]
["0110"]
["0111"]
["0112"]
["0113"]
["0114"]
["0115"]
["0116"]
["0117"]
["0118"]
["0119"]
["0120"]
["0121"]
["0122"]
["0123"]
["0124"]
["0125"]
["0126"]
["0127"]
["0128"]
["0129"]
["0130"]
["0131"]
["0132"]
["0133"]
["0134"]
["0135"]
["0136"]
["0137"]
["0138"]
["0139"]
["0140"]
["0141"]
["0142"]
["0143"]
["0144"]
["0145"]
["0146"]
["0147"]
["0148"]
["0149"]
["0150"]
["0151"]
["0152"]
["0153"]
["0154"]
["0155"]
["0156"]
["0157"]
["0158"]
["0159"]
["0160"]
["0161"]
["0162"]
["0163"]
["0164"]
["0165"]
["0166"]
["0167"]
["0168"]
["0169"]
["0170"]
["0171"]
["0172"]
["0173"]
["0174"]
["0175"]
["0176"]
["0177"]
["0178"]
["0179"]
["0180"]
["0181"]
["0182"]
["0183"]
["0184"]
["0185"]
["0186"]
["0187"]
["0188"]
["0189"]
["0190"]
["0191"]
["0192"]
["0193"]
["0194"]
["0195"]
["0196"]
["0197"]
["0198"]
["0199"]
["0200"]
["0201"]
["0202"]
["0203"]
["0204"]
["0205"]
["0206"]
["0207"]
["0208"]
["0209"]
["0210"]
["0211"]
["0212"]
["0213"]
["0214"]
["0215"]
["0216"]
["0217"]
["0218"]
["0219"]
["0220"]
["0221"]
["0222"]
["0223"]
["0224"]
["0225"]
["0226"]
["0227"]
["0228"]
["0229"]
["0230"]
["0231"]
["0232"]
["0233"]
["0234"]
["0235"]
["0236"]
["0237"]
["0238"]
["0239"]
["0240"]
["0241"]
["0242"]
["0243"]
["0244"]
["0245"]
["0246"]
["0247"]
["0248"]
["0249"]
["0250"]
["0251"]
["0252"]
["0253"]
["0254"]
["0255"]
["0256"]
["0257"]
["0258"]
["0259"]
["0260"]
["0261"]
["0262"]
["0263"]
["0264"]
["0265"]
["0266"]
["0267"]
["0268"]
["0269"]
["0270"]
["0271"]
["0272"]
["0273"]
["0274"]
["0275"]
["0276"]
["0277"]
["0278"]
["0279"]
["0280"]
["0281"]
["0282"]
["0283"]
["0284"]
["0285"]
["0286"]
["0287"]
["0288"]
["0289"]
["0290"]
["0291"]
["0292"]
["0293"]
["0294"]
["0295"]
["0296"]
["0297"]
["0298"]
["0299"]
["0300"]

{"sheet":"歯科診療所票入力のしかた","index":4,"n_rows":22,"n_cols":7,"rows_kept":22,"cut":false,"hidden":true,"merged":[[15,3,16,3],[14,1,21,1],[14,2,21,2],[3,1,6,1],[3,2,6,2],[7,1,8,1],[7,2,8,2],[9,1,12,1],[9,2,12,2]]}
["フィールドID","入力のしかた（HTML）","項目名","表示範囲\n（先頭行）","表示範囲\n（後尾行）","単記票\n行位置","単記票\n列位置"]
[1,"●自動で採番されます。\n●入力不可です。\n","【患者番号】",8,null,7,2]
[2,"●性別を入力します。\n　　1又は2のいずれかを入力します。\n","【(1)性別】",8,null,8,2]
[3,"●出生年月日を入力します。\n　　「元号」は、1～5のいずれかを入力します。\n　　「年」「月」「日」は、数字を入力します。\n\n　　※生年月日が不明の場合は、「元号」「年」「月」「日」に9999を入力し、後ろ3桁に推定年齢を入力してください。\n　　　例）推定年齢が87歳の場合、「9999087」\n　　　（元号：9、年：99、月：9+年齢の百の位、日：年齢の後ろ2桁。）","【(2)出生年月日】",8,9,9,2]
[4,null,null,9,null,10,2]
[5,null,null,9,null,11,2]
[6,null,null,9,null,12,2]
[7,"●患者の住所を入力します。\n①　1又は2のいずれかを入力します。\n　1:当院と同じ都道府県内\n　2:当院とは別の都道府県\n\n②　①が「2:当院とは別の都道府県」の場合は、「都道府県」を漢字入力します。\n\n　　・外国人旅行者の場合は、①に「2」を入力し、②の「都道府県」に「外国」と入力してください。\n　　・住所不定又は不詳の場合は、①に「2」を入力し、②の「都道府県」に「不定」又は「不詳」と入力してください。","【(3)患者の住所】",8,null,13,2]
[8,null,null,9,null,14,2]
[9,"●外来の種別を入力します。\n①　1～5のいずれかを入力します。\n\n②　①が「再来」（「3」～「5」）の場合、「前回診療月日」又は「前回訪問月日」を入力します。　\n    「月」「日」は、数字を入力します。\n","【(4)外来の種別】",8,null,15,2]
[10,null,null,8,null,16,2]
[11,null,null,8,null,17,2]
[12,null,null,9,null,18,2]
[13,"●傷病名を入力します。\n　1～16のいずれかを入力します。\n\n    1:う蝕症（Ｃ）\n    2:歯髄炎（Ｐｕｌ）、歯髄壊疽（Ｐｕ壊疽）、歯髄壊死(Ｐｕ壊死）\n    3:歯根膜炎（Ｐｅｒ）\n    4:歯槽膿瘍（ＡＡ）、歯根嚢胞（ＷＺ）\n    5:歯肉炎（Ｇ）\n    6:慢性歯周炎（Ｐ）\n    7:歯肉膿瘍（ＧＡ）、その他の歯周疾患\n    8:智歯周囲炎（Ｐｅｒｉｃｏ）\n    9:その他の歯及び歯の支持組織の障害\n   10:じょく瘡性潰瘍（Ｄｕｌ）、口内炎(Ｓｔｏｍ)等\n   11:その他の顎及び口腔の疾患\n　 12:歯の補てつ（冠）\n   13:歯の欠損補てつ（ブリッジ、有床義歯、インプラント）\n   14:歯科矯正\n   15:外因による損傷\n   16:検査・健康診断（査）及びその他の保健医療サービス\n","【(5)傷病名】",8,null,19,2]
[14,"●診療費等支払方法を入力します。\n①　該当する項目すべてを入力します。\n　　1:自費診療(保険外併用療養費を含む)\n　　2:医療保険等、公費負担医療\n　　3:介護保険(介護扶助を含む)\n\n②　①が「2:医療保険等、公費負担医療」の場合は、\n　　　　「Ⅰ 医療保険等」については該当する数字を1つ入力し、\n　　　　「Ⅱ 公費負担医療」については該当する項目すべてを入力します。\n\n　Ⅰ 医療保険等\n　　 1:健康保険・各種共済組合(本人)\n　　 2:健康保険・各種共済組合(家族)\n　　 3:国民健康保険\n　　 4:退職者医療\n　　 5:高齢者医療（後期高齢者医療制度）\n　　 6:労働災害・公務災害\n　　 7:自動車損害賠償保障法\n　　 8:その他\n\n　Ⅱ 公費負担医療\n　　09:感染症の予防及び感染症の患者に対する医療に関する法律\n　　10:障害者の日常生活及び社会生活を総合的に支援するための法律（育成医療、更生医療、精神通院医療）\n　　11:生活保護法（医療扶助）\n　　12:その他の公費負担によるもの\n\n　　※介護保険サービス利用者で、医療保険等と公費負担医療を併用している場合は、\n　　　それらの両方について入力します。\n","【(6)診療費等支払方法】",8,null,20,2]
[15,null,null,8,null,21,2]
[16,null,null,null,null,22,2]
[17,null,null,8,null,23,2]
[18,null,null,8,null,24,2]
[19,null,null,8,null,25,2]
[20,null,null,8,null,26,2]
[21,null,null,8,null,27,2]

{"sheet":"歯科診療所票フィールド定義","index":5,"n_rows":23,"n_cols":16,"rows_kept":23,"cut":false,"hidden":true,"merged":[[0,0,1,0],[0,1,0,4],[0,15,1,15]]}
["ID","項目名",null,null,null,"属性",null,null,null,null,null,null,null,null,null,"単記票\nセル位置"]
[null,1,2,3,4,"読取専用","必須","混在","桁数","最小値","最大値","真偽値","全角","半角","コントロール"]
[1,"患者番号",null,null,"A7","○",null,null,null,1,9999,null,null,null,null,"C7"]
[2,"(1)性別",null,null,"B8",null,"○","数字",1,1,2,null,null,null,null,"C8"]
[3,"(2)出生年月日","元号",null,"B9",null,"○","数字",1,1,9,null,null,null,null,"C9"]
[4,"(2)出生年月日","年",null,"B10",null,"○","数字",2,1,99,null,null,null,null,"C10"]
[5,"(2)出生年月日","月",null,"B11",null,"○","数字",2,1,91,null,null,null,null,"C11"]
[6,"(2)出生年月日","日",null,"B12",null,"○","数字",2,0,99,null,null,null,null,"C12"]
[7,"(3)患者の住所","当院と同別",null,"B13",null,"○","数字",1,1,2,null,null,null,null,"C13"]
[8,"(3)患者の住所","都道府県",null,"B14",null,null,"全角",4,null,null,null,null,null,null,"C14"]
[9,"(4)外来の種別","初診",null,"B15",null,null,"数字",1,1,2,null,null,null,null,"C15"]
[10,"(4)外来の種別","再来",null,"B16",null,null,"数字",1,3,5,null,null,null,null,"C16"]
[11,"(4)外来の種別","前回診療（訪問）","月","B17",null,null,"数字",2,1,10,null,null,null,null,"C17"]
[12,"(4)外来の種別","前回診療（訪問）","日","B18",null,null,"数字",2,1,31,null,null,null,null,"C18"]
[13,"(5)傷病名",null,null,"B19",null,"○","数字",2,1,16,null,null,null,null,"C19"]
[14,"(6)診療費等支払方法","自費診療",null,"B20",null,null,"数字",1,1,1,null,null,null,null,"C20"]
[15,"(6)診療費等支払方法","医療・公費",null,"B20",null,null,"数字",1,1,1,null,null,null,null,"C21"]
[16,"(6)診療費等支払方法","介護保険",null,"B20",null,null,"数字",1,1,1,null,null,null,null,"C22"]
[17,"(6)診療費等支払方法","Ⅰ医療保険等",null,"B23",null,null,"数字",1,1,8,null,null,null,null,"C23"]
[18,"(6)診療費等支払方法","Ⅱ公費負担医療","09感染症法","B24",null,null,"数字",1,1,1,null,null,null,null,"C24"]
[19,"(6)診療費等支払方法","Ⅱ公費負担医療","10障害者法","B24",null,null,"数字",1,1,1,null,null,null,null,"C25"]
[20,"(6)診療費等支払方法","Ⅱ公費負担医療","11生活保護法（医療扶助）","B24",null,null,"数字",1,1,1,null,null,null,null,"C26"]
[21,"(6)診療費等支払方法","Ⅱ公費負担医療","12その他の公費負担によるもの","B24",null,null,"数字",1,1,1,null,null,null,null,"C27"]

{"sheet":"マスタ","index":6,"n_rows":50,"n_cols":35,"rows_kept":50,"cut":false,"hidden":true,"merged":[]}
["都道府県コード","都道府県名","政令指定都市フラグ","調査票コード","調査票名",null,"市群コード","市群名称","区町村コード","区町村名",null,"元号","元号MAX年",null,"プレプリント項目","プレプリント値",null,"XML出力項目","タグ名",null,null,null,null,null,null,"調査票名",null,null,null,null,"調査日","調査日",null,"調査票チェックフラグ"]
["01","北海道",1,"6","歯科診療所票",null,null,null,null,null,null,"1 令和",5,null,"対象者認証情報格納エリア",null,null,"対象者認証情報格納エリア","taishosha_cer",null,null,null,null,null,null,"調査票種別",null,null,null,null,1,"１日",null,"調査票名","フラグ"]
["02","青森県",null,null,null,null,null,null,null,null,null,"2 平成",31,null,"認証統計調査コード",null,null,"認証統計調査コード","cer_toke_cd",null,null,null,null,null,null,"都道府県",null,null,null,null,2,"２日",null,"歯科","0"]
["03","岩手県",null,null,null,null,null,null,null,null,null,"3 昭和",64,null,"認証調査対象者ID",null,null,"認証調査対象者ID","cer_taishosha_id",null,null,null,null,null,null,"都道府県CD",null,null,null,null,3,"３日"]
["04","宮城県",1,null,null,null,null,null,null,null,null,"4 大正",15,null,"確認コード",null,null,"確認コード","cer_kakunin_cd",null,null,null,null,null,null,"施設番号",null,null,null,null,4,"４日"]
["05","秋田県",null,null,null,null,null,null,null,null,null,"5 明治",45,null,"36進統計調査コード",null,null,"36進統計調査コード","toke_cd_36",null,null,null,null,null,null,"チェックOK日時","0",null,null,null,5,"５日"]
["06","山形県",null,null,null,null,null,null,null,null,null,"9 不詳",99,null,"送信先URL1",null,null,"送信先URL1","soshin1",null,null,null,null,null,null,"施設名",null,null,null,null,6,"６日"]
["07","福島県",null,null,null,null,null,null,null,null,null,null,null,null,"送信先URL2",null,null,"送信先URL2","soshin2",null,null,null,null,null,null,"調査日",null,null,null,null,7,"７日"]
["08","茨城県",null,null,null,null,null,null,null,null,null,null,null,null,"管理情報格納エリア",null,null,"管理情報格納エリア","kanri",null,null,null,null,null,null,"調査年月日",null,null,null,null,8,"８日"]
["09","栃木県",null,null,null,null,null,null,null,null,null,null,null,null,"統計調査コード",null,null,"統計調査コード","toke_cd",null,null,null,null,null,null,"初期フラグ","0",null,null,null,9,"９日"]
["10","群馬県",null,null,null,null,null,null,null,null,null,null,null,null,"実施時期コード",null,null,"実施時期コード","jiki_cd",null,null,null,null,null,null,null,null,null,null,null,10,"１０日"]
["11","埼玉県",1,null,null,null,null,null,null,null,null,null,null,null,"調査対象者ID",null,null,"調査対象者ID","taishosha_id",null,null,null,null,null,null,null,null,null,null,null,11,"１１日"]
["12","千葉県",1,null,null,null,null,null,null,null,null,null,null,null,"電子調査票ID",null,null,"電子調査票ID","chosahyo_id",null,null,null,null,null,null,null,null,null,null,null,12,"１２日"]
["13","東京都",1,null,null,null,null,null,null,null,null,null,null,null,"キー項目",null,null,"キー項目","key_komoku",null,null,null,null,null,null,null,null,null,null,null,13,"１３日"]
["14","神奈川県",null,null,null,null,null,null,null,null,null,null,null,null,"連絡先情報格納エリア",null,null,"連絡先情報格納エリア","renraku",null,null,null,null,null,null,null,null,null,null,null,14,"１４日"]
["15","新潟県",1,null,null,null,null,null,null,null,null,null,null,null,"メールアドレス",null,null,"メールアドレス","mail_adr",null,null,null,null,null,null,null,null,null,null,null,15,"１５日"]
["16","富山県",null,null,null,null,null,null,null,null,null,null,null,null,"氏名",null,null,"氏名","shime",null,null,null,null,null,null,null,null,null,null,null,16,"１６日"]
["17","石川県",null,null,null,null,null,null,null,null,null,null,null,null,"会社名",null,null,"会社名","kaisha",null,null,null,null,null,null,null,null,null,null,null,17,"１７日"]
["18","福井県",null,null,null,null,null,null,null,null,null,null,null,null,"英文会社名",null,null,"英文会社名","kaisha_e",null,null,null,null,null,null,null,null,null,null,null,18,"１８日"]
["19","山梨県",null,null,null,null,null,null,null,null,null,null,null,null,"商号",null,null,"商号","shogo",null,null,null,null,null,null,null,null,null,null,null,20,"２０日"]
["20","長野県",null,null,null,null,null,null,null,null,null,null,null,null,"支店名",null,null,"支店名","shiten",null,null,null,null,null,null,null,null,null,null,null,19,"１９日"]
["21","岐阜県",null,null,null,null,null,null,null,null,null,null,null,null,"店舗名",null,null,"店舗名","tempo",null,null,null,null,null,null,null,null,null,null,null,21,"２１日"]
["22","静岡県",1,null,null,null,null,null,null,null,null,null,null,null,"代表者名",null,null,"代表者名","daihyosha",null,null,null,null,null,null,null,null,null,null,null,23,"２３日"]
["23","愛知県",1,null,null,null,null,null,null,null,null,null,null,null,"法人名",null,null,"法人名","hojin",null,null,null,null,null,null,null,null,null,null,null,22,"２２日"]
["24","三重県",null,null,null,null,null,null,null,null,null,null,null,null,"学校名",null,null,"学校名","gakko",null,null,null,null,null,null,null,null,null,null,null,24,"２４日"]
["25","滋賀県",null,null,null,null,null,null,null,null,null,null,null,null,"部署名",null,null,"部署名","busho",null,null,null,null,null,null,null,null,null,null,null,25,"２５日"]
["26","京都府",1,null,null,null,null,null,null,null,null,null,null,null,"担当者名",null,null,"担当者名","tantosha",null,null,null,null,null,null,null,null,null,null,null,26,"２６日"]
["27","大阪府",1,null,null,null,null,null,null,null,null,null,null,null,"住所",null,null,"住所","jusho",null,null,null,null,null,null,null,null,null,null,null,27,"２７日"]
["28","兵庫県",1,null,null,null,null,null,null,null,null,null,null,null,"所在地",null,null,"所在地","shozaichi",null,null,null,null,null,null,null,null,null,null,null,28,"２８日"]
["29","奈良県",null,null,null,null,null,null,null,null,null,null,null,null,"本社・本店所在地",null,null,"本社・本店所在地","shozaichi_2",null,null,null,null,null,null,null,null,null,null,null,29,"２９日"]
["30","和歌山県",null,null,null,null,null,null,null,null,null,null,null,null,"ビル名",null,null,"ビル名","biru",null,null,null,null,null,null,null,null,null,null,null,30,"３０日"]
["31","鳥取県",null,null,null,null,null,null,null,null,null,null,null,null,"郵便番号",null,null,"郵便番号","yubin_no",null,null,null,null,null,null,null,null,null,null,null,31,"３１日"]
["32","島根県",null,null,null,null,null,null,null,null,null,null,null,null,"本社・本店郵便番号",null,null,"本社・本店郵便番号","yubin_no_2"]
["33","岡山県",1,null,null,null,null,null,null,null,null,null,null,null,"電話番号",null,null,"電話番号","tel_no"]
["34","広島県",1,null,null,null,null,null,null,null,null,null,null,null,"本社・本店電話番号",null,null,"本社・本店電話番号","tel_no_2"]
["35","山口県",null,null,null,null,null,null,null,null,null,null,null,null,"内線番号",null,null,"内線番号","naisen_no"]
["36","徳島県",null,null,null,null,null,null,null,null,null,null,null,null,"携帯電話番号",null,null,"携帯電話番号","ketai_no"]
["37","香川県",null,null,null,null,null,null,null,null,null,null,null,null,"ＦＡＸ番号",null,null,"ＦＡＸ番号","fax_no"]
["38","愛媛県",null,null,null,null,null,null,null,null,null,null,null,null,"備考１",null,null,"備考１","biko_1"]
["39","高知県",null,null,null,null,null,null,null,null,null,null,null,null,"備考２",null,null,"備考２","biko_2"]
["40","福岡県",1,null,null,null,null,null,null,null,null,null,null,null,"備考３",null,null,"備考３","biko_3"]
["41","佐賀県",null,null,null,null,null,null,null,null,null,null,null,null,"-",null,null,"調査票回答格納エリア","kaito"]
["42","長崎県",null,null,null,null,null,null,null,null,null,null,null,null,"都道府県",null,null,"歯科1～300","shika"]
["43","熊本県",1,null,null,null,null,null,null,null,null,null,null,null,"施設番号"]
["44","大分県",null,null,null,null,null,null,null,null,null,null,null,null,"施設名"]
["45","宮崎県",null,null,null,null,null,null,null,null,null,null,null,null,"調査日"]
["46","鹿児島県"]
["47","沖縄県"]
[48,"不詳"]
[49,"外国"]